bitfinex-derivatives/quotes_BTCF0:USTF0_20250211
["timestamp","ask_amount","ask_price","bid_price","bid_amount"]
[1739305824225,0.00015732,95369.0,95365.0,0.2097301]
[1739305824617,0.00015732,95369.0,95359.0,0.01154491]
[1739305824811,0.00015732,95369.0,95358.0,0.5705452]
[1739305825219,0.00015732,95369.0,95365.0,0.001]
[1739305825423,0.01169423,95369.0,95365.0,0.001]
[1739305825623,0.00015732,95369.0,95365.0,0.002]
[1739305826022,0.00015732,95369.0,95358.0,0.58461805]
[1739305826219,0.12726149,95368.0,95358.0,0.37443285]
[1739305826419,0.2097417,95361.0,95358.0,0.002]
[1739305826727,0.2097417,95361.0,95358.0,0.001]
[1739305827332,0.2097256,95368.0,95358.0,0.001]
[1739305827830,0.2097256,95368.0,95355.0,0.3608]
[1739305827831,0.2097256,95368.0,95365.0,0.001]
[1739305828421,0.00015732,95369.0,95365.0,0.001]
[1739305828620,0.00015732,95369.0,95358.0,0.002]
[1739305828821,0.00015732,95369.0,95359.0,0.12726149]
[1739305829222,0.00015732,95369.0,95365.0,0.001]
[1739305829424,0.00015732,95369.0,95365.0,0.002]
[1739305829819,0.00015732,95369.0,95365.0,0.001]
[1739305831028,0.00015732,95369.0,95359.0,0.001]
[1739305831822,0.00015732,95369.0,95365.0,0.001]
[1739305832023,0.00015732,95369.0,95365.0,0.002]
[1739305832527,0.00015732,95369.0,95359.0,0.002]
[1739305832728,0.2097401,95362.0,95359.0,0.002]
[1739305832924,0.2097401,95362.0,95359.0,0.001]
[1739305833735,0.2097401,95362.0,95359.0,0.002]
[1739305834125,0.2097401,95362.0,95359.0,0.001]
[1739305834426,0.2097413,95361.0,95359.0,0.001]
[1739305835033,0.2097413,95361.0,95359.0,0.002]
[1739305835828,0.2097425,95360.0,95359.0,0.002]
[1739305836028,0.2097425,95360.0,95359.0,0.001]
[1739305836322,0.2097425,95360.0,95359.0,0.002]
[1739305836533,0.11215732,95369.0,95359.0,0.002]
[1739305836733,0.00015732,95369.0,95359.0,0.002]
[1739305836936,0.00015732,95369.0,95363.0,0.209735]
[1739305837130,0.00015732,95369.0,95364.0,0.2097335]
[1739305838228,0.00015732,95369.0,95364.0,0.2107335]
[1739305838939,0.00015732,95369.0,95364.0,0.2117335]
[1739305841641,0.2097254,95368.0,95364.0,0.002]
[1739305841849,0.3608,95367.0,95364.0,0.002]
[1739305842032,0.2097308,95366.0,95364.0,0.002]
[1739305843026,0.5705308,95366.0,95364.0,0.002]
[1739305843234,0.5705308,95366.0,95364.0,0.001]
[1739305843434,0.2097321,95365.0,95364.0,0.001]
[1739305843636,0.2097398,95362.0,95355.0,0.5705528]
[1739305845344,0.1085,95365.0,95355.0,0.3608]
[1739305845546,0.1085,95365.0,95358.0,0.2097462]
[1739305846439,0.1085,95365.0,95359.0,0.2097446]
[1739305846639,0.2097355,95364.0,95355.0,0.3608]
[1739305846954,0.002,95362.0,95358.0,0.001]
[1739305847841,0.2097355,95364.0,95358.0,0.001]
[1739305848047,0.2117355,95364.0,95358.0,0.001]
[1739305848545,0.2117355,95364.0,95356.0,0.2097503]
[1739305848845,0.002,95362.0,95356.0,0.2097503]
[1739305850941,0.2107355,95364.0,95356.0,0.2097503]
[1739305851541,0.001,95362.0,95356.0,0.2097503]
[1739305851738,0.001,95362.0,95360.0,0.209741]
[1739305852148,0.001,95362.0,95361.0,0.1093]
[1739305852345,0.00015732,95369.0,95361.0,0.1093]
[1739305852346,0.001,95364.0,95362.0,0.2097381]
[1739305852845,0.001,95364.0,95363.0,0.1138]
[1739305853745,0.001,95364.0,95363.0,0.684336]
[1739305853947,0.00015732,95369.0,95363.0,0.4746]
[1739305854138,1e-08,95369.0,95368.0,0.209725]
[1739305855541,0.00100001,95369.0,95368.0,0.210725]
[1739305855946,0.00100001,95369.0,95368.0,0.211725]
[1739305863447,0.1116,95380.0,95368.0,0.211725]
[1739305863448,0.1147,95393.0,95368.0,0.002]
[1739305863637,0.3608,95399.0,95387.0,0.2096818]
[1739305863638,0.0112631,95396.0,95387.0,0.2096818]
[1739305863845,0.3608,95399.0,95388.0,0.113]
[1739305864038,0.2096685,95394.0,95388.0,0.113]
[1739305865451,0.001,95394.0,95381.0,0.36095732]
[1739305865745,0.2096817,95388.0,95381.0,0.36095732]
[1739305865953,0.1147,95387.0,95381.0,0.36095732]
[1739305867741,0.37220909,95399.0,95381.0,0.36095732]
[1739305867742,0.2096607,95398.0,95381.0,0.36095732]
[1739305867945,0.33693629,95391.0,95381.0,0.36095732]
[1739305868351,0.1121,95398.0,95381.0,0.36095732]
[1739305868857,0.1121,95398.0,95387.0,0.2096825]
[1739305869442,0.3217601,95398.0,95387.0,0.2096825]
[1739305870056,0.3217601,95398.0,95388.0,0.1112]
[1739305870648,0.3217601,95398.0,95389.0,0.3608]
[1739305871948,0.3217601,95398.0,95388.0,0.1122]
[1739305872144,0.1121,95398.0,95388.0,0.1122]
[1739305872348,0.2096705,95393.0,95388.0,0.1122]
[1739305872548,0.1121,95398.0,95388.0,0.1122]
[1739305873048,0.3217604,95398.0,95388.0,0.3218803]
[1739305873258,0.3217604,95398.0,95389.0,0.001]
[1739305873459,0.2096634,95396.0,95389.0,0.001]
[1739305874057,0.2096634,95396.0,95388.0,0.3218803]
[1739305874753,0.2096634,95396.0,95389.0,0.001]
[1739305875263,0.2096634,95396.0,95389.0,0.2106779]
[1739305876557,0.2096676,95395.0,95389.0,0.2106779]
[1739305877254,0.2096676,95395.0,95390.0,0.2096765]
[1739305878963,0.2096679,95394.0,95389.0,0.001]
[1739305879358,0.2096617,95397.0,95389.0,0.2106766]
[1739305880061,0.2096617,95397.0,95391.0,0.2096742]
[1739305881369,0.2096617,95397.0,95391.0,0.2106742]
[1739305882560,0.1121,95398.0,95391.0,0.2106742]
[1739305882561,0.2096647,95396.0,95391.0,0.2106742]
[1739305883270,0.01113949,95399.0,95398.0,0.2096589]
[1739305883571,2e-08,95401.0,95399.0,0.2096567]
[1739305883762,2e-08,95401.0,95400.0,1.51429044]
[1739305883970,0.00157228,95429.0,95428.0,0.209593]
[1739305884166,0.00157228,95429.0,95428.0,0.570393]
[1739305885063,0.00157228,95429.0,95428.0,0.571393]
[1739305885774,0.00157228,95429.0,95428.0,0.001]
[1739305886568,0.00157228,95429.0,95428.0,0.002]
[1739305887873,0.36237228,95429.0,95428.0,0.002]
[1739305888061,0.2095988,95426.0,95419.0,0.00015724]
[1739305888467,0.2096076,95422.0,95419.0,0.00015724]
[1739305888660,0.3608,95420.0,95419.0,0.00015724]
[1739305889376,0.3608,95420.0,95419.0,0.00115724]
[1739305889762,0.3608,95420.0,95419.0,0.001]
[1739305890472,0.3618,95420.0,95419.0,0.002]
[1739305890674,0.001,95420.0,95419.0,0.002]
[1739305891374,0.001,95420.0,95419.0,0.1172]
[1739305891966,0.002,95420.0,95419.0,0.1172]
[1739305892969,0.001,95420.0,95419.0,0.1152]
[1739305893171,0.003,95420.0,95419.0,0.1162]
[1739305893975,0.001,95420.0,95419.0,0.3248128]
[1739305894174,0.003,95420.0,95419.0,0.3258128]
[1739305895671,0.002,95420.0,95419.0,0.3258128]
[1739305895979,0.12726149,95430.0,95422.0,0.2096052]
[1739305896181,0.12726149,95430.0,95426.0,0.3608]
[1739305896476,0.01114766,95435.0,95426.0,0.3608]
[1739305896682,0.12726149,95436.0,95426.0,0.3608]
[1739305897477,0.12726149,95436.0,95430.0,0.2095871]
[1739305898674,0.2095833,95433.0,95426.0,0.3618]
[1739305899673,0.2095833,95433.0,95430.0,0.001]
[1739305899970,0.002,95436.0,95430.0,0.001]
[1739305900378,0.002,95436.0,95434.0,0.2095787]
[1739305900682,0.00010407,95438.0,95434.0,0.2095787]
[1739305901677,0.00010407,95438.0,95427.0,0.1081]
[1739305901878,0.12726149,95437.0,95428.0,0.01546577]
[1739305902084,0.12726149,95437.0,95427.0,0.1081]
[1739305902085,0.12726149,95437.0,95429.0,0.01546577]
[1739305902383,0.002,95436.0,95430.0,0.001]
[1739305902972,0.12726149,95437.0,95434.0,0.001]
[1739305902973,0.12926149,95437.0,95434.0,0.001]
[1739305903286,0.002,95437.0,95434.0,0.001]
[1739305903878,0.002,95436.0,95434.0,0.001]
[1739305904877,0.002,95436.0,95432.0,0.2095842]
[1739305905477,0.002,95437.0,95434.0,0.002]
[1739305906178,0.002,95436.0,95432.0,0.2115842]
[1739305906379,0.002,95436.0,95433.0,0.015324]
[1739305906681,0.002,95436.0,95434.0,0.001]
[1739305906881,0.00010407,95438.0,95435.0,0.01527857]
[1739305907086,0.2115743,95437.0,95436.0,0.01527857]
[1739305907473,0.2115743,95437.0,95434.0,0.002]
[1739305908091,0.2115743,95437.0,95434.0,0.001]
[1739305908293,0.2115743,95437.0,95434.0,0.002]
[1739305908990,0.002,95437.0,95434.0,0.002]
[1739305909389,0.002,95436.0,95434.0,0.002]
[1739305910086,0.002,95436.0,95434.0,0.001]
[1739305911488,0.002,95437.0,95435.0,0.2095778]
[1739305911975,0.00010407,95438.0,95435.0,0.2095778]
[1739305912174,0.002,95436.0,95435.0,0.2095778]
[1739305912986,0.002,95437.0,95435.0,0.2105778]
[1739305914580,0.00010407,95438.0,95435.0,0.2095778]
[1739305914899,0.002,95436.0,95435.0,0.2105778]
[1739305915594,0.002,95437.0,95435.0,0.2105778]
[1739305916283,0.002,95436.0,95435.0,0.2105778]
[1739305917790,0.002,95437.0,95435.0,0.2105778]
[1739305917990,0.002,95437.0,95435.0,0.001]
[1739305918592,0.002,95436.0,95435.0,0.001]
[1739305918990,0.002,95436.0,95435.0,0.2105778]
[1739305919287,0.00010407,95438.0,95435.0,0.2095778]
[1739305919592,0.002,95437.0,95435.0,0.2105778]
[1739305920585,0.002,95437.0,95435.0,0.001]
[1739305920985,0.002,95436.0,95435.0,0.001]
[1739305921691,0.002,95437.0,95435.0,0.001]
[1739305922285,0.2095756,95436.0,95435.0,0.001]
[1739305922485,0.2115756,95436.0,95435.0,0.001]
[1739305924792,0.2095803,95434.0,95426.0,0.01135196]
[1739305924988,0.2095803,95434.0,95425.0,0.5718386]
[1739305925189,0.2095803,95434.0,95425.0,0.3608]
[1739305925596,0.2095824,95433.0,95427.0,0.2095947]
[1739305926893,0.2095824,95433.0,95425.0,0.3608]
[1739305926894,0.002,95434.0,95425.0,0.37207733]
[1739305927191,0.002,95434.0,95433.0,0.5703822]
[1739305927501,0.002,95434.0,95433.0,2.0703822]
[1739305927798,0.00010407,95438.0,95433.0,1.8608]
[1739305929188,0.00010407,95438.0,95437.0,0.2095734]
[1739305930686,0.00010407,95438.0,95437.0,0.2105734]
[1739305931083,0.00210407,95438.0,95437.0,0.2115734]
[1739305935494,0.00210407,95438.0,95437.0,0.22249673]
[1739305935695,0.00210407,95438.0,95437.0,0.01292333]
[1739305935885,0.00210407,95438.0,95437.0,0.002]
[1739305937091,0.01292872,95438.0,95437.0,0.002]
[1739305937699,0.01292872,95438.0,95437.0,0.001]
[1739305944113,0.00210407,95438.0,95437.0,0.001]
[1739305946895,0.00210407,95438.0,95437.0,0.2105734]
[1739305948298,0.00210407,95438.0,95437.0,0.5713734]
[1739305950403,0.00010407,95438.0,95437.0,0.5703734]
[1739305950611,0.00210407,95438.0,95437.0,0.5713734]
[1739305950801,0.00210407,95438.0,95437.0,0.58548137]
[1739305951110,0.00210407,95438.0,95437.0,0.5713734]
[1739305951311,0.00010407,95438.0,95437.0,0.5703734]
[1739305953301,0.00010407,95438.0,95437.0,0.3608]
[1739305955315,0.00210407,95438.0,95437.0,0.3608]
[1739305957905,0.00210407,95438.0,95437.0,1.8608]
[1739305958109,0.2095032,95469.0,95458.0,0.2095269]
[1739305959320,0.00015691,95469.0,95461.0,0.2095207]
[1739305959521,0.00015691,95469.0,95461.0,0.5703207]
[1739305960018,0.00015691,95469.0,95468.0,0.2095054]
[1739305961312,0.00015691,95469.0,95468.0,0.22048359]
[1739305961512,0.00015691,95469.0,95468.0,0.22248359]
[1739305966324,1e-08,95469.0,95468.0,0.22248359]
[1739305966714,1e-08,95469.0,95468.0,1.72248359]
[1739305970629,1e-08,95469.0,95468.0,1.72148359]
[1739305970827,1e-08,95469.0,95468.0,1.72848359]
[1739305971025,1e-08,95469.0,95468.0,1.73048359]
[1739305971419,1e-08,95469.0,95468.0,1.72348359]
[1739305971729,1e-08,95469.0,95468.0,1.73048359]
[1739305973026,0.2094527,95492.0,95468.0,1.81797819]
[1739305973330,0.1,95500.0,95499.0,0.2094373]
[1739305973526,0.3094351,95500.0,95499.0,0.5702373]
[1739305974030,0.1,95500.0,95499.0,0.5702373]
[1739305974833,0.1,95500.0,95499.0,0.5712373]
[1739305975634,0.1,95500.0,95499.0,0.5722373]
[1739305976337,0.1,95500.0,95499.0,0.5712373]
[1739305977134,0.1,95500.0,95499.0,0.58204197]
[1739305977531,0.1,95500.0,95499.0,0.58104197]
[1739305980127,0.1,95500.0,95499.0,0.37160467]
[1739305980924,0.1,95500.0,95499.0,0.3608]
[1739305981135,0.1,95500.0,95490.0,0.00015714]
[1739305981136,0.7608,95500.0,95490.0,0.00015714]
[1739305981435,0.12726149,95490.0,95477.0,0.01111007]
[1739305981624,0.2094779,95481.0,95468.0,0.00152]
[1739305981828,0.2094779,95481.0,95465.0,0.18639903]
[1739305982034,0.2094779,95481.0,95465.0,0.39590923]
[1739305982632,0.2094944,95473.0,95470.0,0.00015714]
[1739305983022,0.12726149,95480.0,95470.0,0.00015714]
[1739305983226,0.2084841,95478.0,95470.0,0.00015714]
[1739305983427,0.2094864,95477.0,95470.0,0.00015714]
[1739305984139,0.2094864,95477.0,95470.0,0.00815714]
[1739305984338,0.1046,95476.0,95470.0,0.00815714]
[1739305985331,0.1046,95476.0,95474.0,0.2094917]
[1739305985524,0.1046,95476.0,95470.0,0.00815714]
[1739305985729,0.1039,95475.0,95470.0,0.00815714]
[1739305986437,0.1039,95475.0,95470.0,0.01215714]
[1739305986636,0.1039,95475.0,95471.0,0.2094982]
[1739305987138,0.1039,95475.0,95472.0,0.2094957]
[1739305987435,0.1049,95475.0,95472.0,0.2094957]
[1739305987633,0.1049,95475.0,95474.0,0.2094922]
[1739305987634,0.001,95475.0,95474.0,0.2094922]
[1739305987837,0.001,95475.0,95471.0,0.002]
[1739305988033,0.2094964,95473.0,95471.0,0.011]
[1739305988225,0.001,95475.0,95465.0,0.01072353]
[1739305988226,0.2095097,95466.0,95465.0,0.01072353]
[1739305988429,0.2095097,95466.0,95452.0,0.2095385]
[1739305988430,0.2095169,95463.0,95452.0,0.2095385]
[1739305988630,0.1053,95465.0,95450.0,1.86228]
[1739305988830,0.1053,95465.0,95461.0,0.2095188]
[1739305989237,0.1053,95465.0,95459.0,0.37151249]
[1739305989543,0.1033,95465.0,95460.0,0.2095224]
[1739305989741,0.1033,95465.0,95459.0,0.37151249]
[1739305989951,0.1003,95465.0,95459.0,0.37151249]
[1739305990542,0.0993,95465.0,95459.0,0.37151249]
[1739305990738,0.0993,95465.0,95460.0,0.2095224]
[1739305990934,0.0993,95465.0,95460.0,0.001]
[1739305991239,0.3088121,95465.0,95460.0,0.001]
[1739305991435,0.1067,95464.0,95460.0,0.001]
[1739305991633,0.1067,95464.0,95459.0,0.37151249]
[1739305993343,0.1097,95464.0,95460.0,0.2095224]
[1739305993748,0.1097,95464.0,95460.0,0.2105224]
[1739305994336,0.1077,95464.0,95460.0,0.2105224]
[1739305994532,0.1127,95464.0,95460.0,0.2095224]
[1739305994846,0.3222144,95464.0,95459.0,0.01071249]
[1739305995042,0.3222144,95464.0,95456.0,0.2095298]
[1739305995241,0.3172144,95464.0,95456.0,0.2095298]
[1739305995442,0.1147,95464.0,95460.0,0.001]
[1739305995644,0.2095207,95461.0,95460.0,0.001]
[1739305996540,0.1187,95464.0,95460.0,0.001]
[1739305996745,0.1187,95464.0,95463.0,0.2095163]
[1739305997043,0.1137,95464.0,95462.0,0.3608]
[1739305997246,0.1137,95464.0,95460.0,0.001]
[1739305997636,0.1067,95464.0,95460.0,0.002]
[1739305997838,0.1147,95464.0,95460.0,0.002]
[1739305998345,0.1147,95464.0,95460.0,0.2115223]
[1739305998547,0.1087,95464.0,95460.0,0.2105223]
[1739305998843,0.1127,95464.0,95460.0,0.2095223]
[1739305999044,0.1127,95464.0,95455.0,0.2095324]
[1739305999250,0.1127,95464.0,95458.0,0.2095269]
[1739305999638,0.1087,95464.0,95458.0,0.2095269]
[1739305999947,0.1117,95464.0,95458.0,0.2095269]
[1739306000648,0.1177,95464.0,95460.0,0.001]
[1739306001352,0.1097,95464.0,95459.0,0.2095239]
[1739306001549,0.1167,95464.0,95459.0,0.2095239]
[1739306002037,0.1097,95464.0,95459.0,0.2095239]
[1739306002353,0.1177,95464.0,95460.0,0.001]
[1739306003053,0.2095207,95461.0,95460.0,0.001]
[1739306003447,0.2095207,95461.0,95454.0,0.2095358]
[1739306004046,0.2095207,95461.0,95460.0,0.001]
[1739306004354,0.2095207,95461.0,95453.0,0.00015714]
[1739306004355,0.1187,95464.0,95456.0,0.2095311]
[1739306004650,0.007,95464.0,95461.0,0.2095199]
[1739306004852,0.007,95461.0,95458.0,0.3608]
[1739306005245,0.007,95461.0,95454.0,0.001]
[1739306006253,0.007,95461.0,95455.0,0.2095336]
[1739306006551,0.13226149,95464.0,95456.0,0.001]
[1739306006747,0.003,95461.0,95456.0,0.001]
[1739306007151,0.34177709,95464.0,95456.0,0.001]
[1739306007352,0.007,95461.0,95455.0,0.2095336]
[1739306007747,0.004,95461.0,95455.0,0.2095336]
[1739306008049,0.004,95461.0,95460.0,0.209523]
[1739306008255,0.004,95464.0,95460.0,0.209523]
[1739306008459,0.009,95461.0,95460.0,0.209523]
[1739306009443,0.009,95461.0,95460.0,0.570323]
[1739306009957,0.014,95461.0,95460.0,0.570323]
[1739306010656,0.005,95461.0,95460.0,0.570323]
[1739306010863,0.016,95461.0,95460.0,0.571323]
[1739306011254,0.016,95461.0,95460.0,0.58255339]
[1739306011651,0.012,95461.0,95460.0,0.58255339]
[1739306012357,0.3608,95499.0,95460.0,0.67303039]
[1739306012563,0.43669729,95500.0,95472.0,0.3608]
[1739306012766,0.1,95500.0,95492.0,0.2094515]
[1739306013758,0.1,95500.0,95486.0,0.57042294]
[1739306013759,0.2094379,95499.0,95486.0,0.57042294]
[1739306013962,0.2094379,95499.0,95492.0,0.001]
[1739306016467,0.2184379,95499.0,95492.0,0.001]
[1739306016960,0.009,95499.0,95497.0,0.2094417]
[1739306017160,0.009,95499.0,95498.0,0.2094396]
[1739306017560,0.009,95499.0,95498.0,0.5702396]
[1739306019255,0.017,95499.0,95498.0,0.3618]
[1739306019861,0.003,95499.0,95498.0,0.3618]
[1739306020161,0.018,95499.0,95498.0,0.3628]
[1739306024659,0.018,95499.0,95498.0,0.5722396]
[1739306028270,0.015,95499.0,95498.0,0.5712396]
[1739306028567,0.018,95499.0,95498.0,0.5722396]
[1739306030263,0.3788,95499.0,95486.0,0.00015714]
[1739306030463,0.2094619,95488.0,95486.0,0.00015714]
[1739306031475,0.22020831,95488.0,95486.0,0.00015714]
[1739306031668,0.22020831,95488.0,95486.0,0.00115714]
[1739306031974,0.01074641,95488.0,95475.0,0.1067]
[1739306032171,0.3608,95491.0,95475.0,0.1067]
[1739306032172,0.12726149,95485.0,95475.0,0.1067]
[1739306032476,0.33672969,95485.0,95475.0,0.1067]
[1739306032772,0.33672969,95485.0,95474.0,0.21106247]
[1739306032773,0.2094747,95482.0,95474.0,0.00157107]
[1739306033161,0.12726149,95485.0,95474.0,0.21106307]
[1739306034464,0.12826149,95485.0,95474.0,0.21106307]
[1739306034962,0.12826149,95485.0,95474.0,0.00157107]
[1739306035171,0.12826149,95485.0,95480.0,0.2094791]
[1739306035370,0.001,95485.0,95480.0,0.2094791]
[1739306036269,0.006,95485.0,95480.0,0.2094791]
[1739306036870,0.006,95485.0,95474.0,0.00157107]
[1739306037067,0.12726149,95484.0,95474.0,0.00157107]
[1739306037272,0.12726149,95484.0,95477.0,0.2094835]
[1739306037574,0.008,95485.0,95477.0,0.2094835]
[1739306038075,0.006,95485.0,95477.0,0.2094835]
[1739306038277,0.006,95485.0,95478.0,0.2094823]
[1739306038775,0.002,95485.0,95478.0,0.2094823]
[1739306039376,0.2144692,95485.0,95474.0,0.00157107]
[1739306039674,0.12726149,95484.0,95478.0,0.2094815]
[1739306039879,0.005,95485.0,95478.0,0.2094815]
[1739306040274,0.005,95485.0,95484.0,0.2094702]
[1739306040467,0.005,95485.0,95484.0,0.5702702]
[1739306041280,0.003,95485.0,95484.0,0.3608]
[1739306041478,0.007,95485.0,95484.0,0.3608]
[1739306041776,0.2094777,95481.0,95475.0,0.3608]
[1739306042075,0.003,95485.0,95475.0,0.3608]
[1739306042273,0.003,95485.0,95476.0,0.2094874]
[1739306042576,0.2214699,95485.0,95484.0,0.001]
[1739306042978,0.012,95485.0,95484.0,0.001]
[1739306043679,0.2214681,95485.0,95484.0,0.001]
[1739306043873,0.2174681,95485.0,95484.0,0.001]
[1739306044277,0.2174681,95485.0,95477.0,0.2094854]
[1739306044473,0.2174681,95485.0,95475.0,0.3608]
[1739306044474,0.002,95485.0,95479.0,0.2094809]
[1739306044671,0.006,95485.0,95479.0,0.2094809]
[1739306044874,0.006,95485.0,95475.0,0.3608]
[1739306045073,0.004,95485.0,95475.0,0.3608]
[1739306045277,0.012,95485.0,95484.0,0.2104702]
[1739306045579,0.008,95485.0,95484.0,0.2104702]
[1739306045775,0.01,95485.0,95484.0,0.2104702]
[1739306045979,0.003,95485.0,95484.0,0.2094702]
[1739306046872,0.003,95485.0,95484.0,0.4213702]
[1739306047072,0.22726149,95500.0,95484.0,0.2119]
[1739306047374,0.22726149,95500.0,95494.0,0.2094476]
[1739306048575,0.24226149,95500.0,95494.0,0.001]
[1739306048976,0.2094615,95488.0,95487.0,0.00015714]
[1739306049275,0.2094661,95486.0,95475.0,0.3608]
[1739306049480,0.12726149,95485.0,95475.0,0.3608]
[1739306049781,0.12726149,95485.0,95475.0,0.37149419]
[1739306050375,0.12726149,95485.0,95476.0,0.1044]
[1739306051577,0.12726149,95485.0,95476.0,0.1054]
[1739306051781,0.12826149,95485.0,95476.0,0.1054]
[1739306052483,0.13026149,95485.0,95476.0,0.1044]
[1739306053383,0.003,95485.0,95476.0,0.1044]
[1739306053885,0.003,95485.0,95476.0,0.3138869]
[1739306054181,0.003,95485.0,95483.0,0.2094721]
[1739306054386,0.003,95485.0,95484.0,0.1018]
[1739306055288,0.001,95485.0,95484.0,0.1018]
[1739306055481,0.008,95485.0,95484.0,0.1018]
[1739306055877,0.008,95485.0,95483.0,0.001]
[1739306056688,0.007,95485.0,95483.0,0.001]
[1739306056986,0.009,95485.0,95477.0,0.2094852]
[1739306057587,0.009,95485.0,95476.0,0.1044]
[1739306057787,0.011,95485.0,95483.0,0.2104722]
[1739306058280,0.007,95485.0,95483.0,0.2104722]
[1739306058479,0.009,95485.0,95483.0,0.2104722]
[1739306058691,0.004,95485.0,95483.0,0.2094722]
[1739306060089,0.006,95485.0,95483.0,0.2094722]
[1739306060285,0.01,95485.0,95483.0,0.2104722]
[1739306061083,0.004,95485.0,95483.0,0.2094722]
[1739306061282,0.006,95485.0,95483.0,0.2094722]
[1739306061785,0.003,95485.0,95483.0,0.2104722]
[1739306061981,0.009,95485.0,95483.0,0.2104722]
[1739306062491,0.009,95485.0,95484.0,0.5702703]
[1739306062694,0.009,95485.0,95484.0,0.6728703]
[1739306063587,0.003,95485.0,95484.0,0.6728703]
[1739306063794,0.011,95485.0,95484.0,0.6738703]
[1739306064388,0.12726149,95494.0,95493.0,0.2094506]
[1739306064594,0.22726149,95500.0,95493.0,0.2094506]
[1739306064891,0.22726149,95500.0,95494.0,0.2094476]
[1739306066593,0.3648,95498.0,95494.0,0.2094476]
[1739306066980,0.3728,95498.0,95494.0,0.2104476]
[1739306067183,0.3768,95498.0,95494.0,0.2104476]
[1739306067589,0.3728,95498.0,95494.0,0.2104476]
[1739306067793,0.3788,95498.0,95495.0,0.1067]
[1739306069390,0.3648,95498.0,95495.0,0.1067]
[1739306069603,0.3768,95498.0,95495.0,0.1067]
[1739306069896,0.3768,95498.0,95495.0,0.1077]
[1739306070089,0.016,95498.0,95496.0,0.209444]
[1739306070294,0.015,95498.0,95496.0,0.312644]
[1739306070499,0.019,95498.0,95496.0,0.1032]
[1739306070997,0.004,95498.0,95496.0,0.1032]
[1739306071192,0.01,95498.0,95496.0,0.1032]
[1739306071391,0.006,95498.0,95496.0,0.1032]
[1739306071594,0.008,95498.0,95496.0,0.1032]
[1739306072509,0.002,95498.0,95497.0,0.3608]
[1739306072702,0.008,95498.0,95497.0,0.3608]
[1739306073502,0.009,95498.0,95497.0,0.3608]
[1739306074004,0.007,95498.0,95497.0,0.3608]
[1739306074206,0.011,95498.0,95497.0,0.3608]
[1739306074706,0.01,95498.0,95497.0,0.3608]
[1739306075097,0.007,95498.0,95497.0,0.3608]
[1739306075297,0.011,95498.0,95497.0,0.3608]
[1739306075703,0.01,95498.0,95497.0,0.3608]
[1739306076704,0.006,95498.0,95497.0,0.3608]
[1739306077005,0.009,95498.0,95497.0,0.3608]
[1739306077503,0.009,95498.0,95497.0,0.5702418]
[1739306078300,0.006,95498.0,95497.0,0.5702418]
[1739306078503,0.009,95498.0,95497.0,0.5702418]
[1739306078903,0.009,95498.0,95497.0,0.5712418]
[1739306079497,0.003,95498.0,95497.0,0.5702418]
[1739306079702,0.009,95498.0,95497.0,0.5702418]
[1739306081001,0.006,95498.0,95497.0,0.5702418]
[1739306081304,0.3698,95498.0,95496.0,0.1032]
[1739306081505,0.3698,95498.0,95481.0,0.1007]
[1739306081806,0.2094606,95489.0,95481.0,0.1007]
[1739306082402,0.2094617,95488.0,95481.0,0.1007]
[1739306082606,0.2094617,95488.0,95481.0,0.11150282]
[1739306083001,0.12726149,95491.0,95481.0,0.32297942]
[1739306083205,0.2094702,95485.0,95481.0,0.01280282]
[1739306083407,0.2094696,95485.0,95481.0,0.002]
[1739306083710,0.2094696,95485.0,95479.0,0.18639903]
[1739306083920,0.003,95488.0,95479.0,0.18639903]
[1739306084108,0.002,95488.0,95487.0,0.2094638]
[1739306085216,0.3608,95490.0,95488.0,0.2094606]
[1739306085410,0.002,95491.0,95488.0,0.2094606]
[1739306085803,0.33670409,95497.0,95488.0,0.2094606]
[1739306086414,0.12726149,95497.0,95487.0,0.001]
[1739306086821,0.008,95491.0,95490.0,0.2094572]
[1739306088314,0.011,95497.0,95490.0,0.2094572]
[1739306088823,0.011,95497.0,95491.0,0.2094548]
[1739306089017,0.004,95497.0,95496.0,0.209444]
[1739306089217,0.1,95500.0,95496.0,0.209444]
[1739306089522,0.1,95500.0,95497.0,0.2094415]
[1739306090615,0.103,95500.0,95497.0,0.2094415]
[1739306091520,0.109,95500.0,95497.0,0.2094415]
[1739306091723,0.109,95500.0,95498.0,0.2094395]
[1739306092722,0.103,95500.0,95498.0,0.2094395]
[1739306092921,0.109,95500.0,95498.0,0.2104395]
[1739306093119,0.106,95500.0,95499.0,0.2094374]
[1739306093319,0.109,95500.0,95499.0,0.2094374]
[1739306094314,0.11,95500.0,95499.0,0.2094374]
[1739306094525,0.111,95500.0,95499.0,0.2104374]
[1739306095321,0.111,95500.0,95499.0,0.2211875]
[1739306096925,0.07287321,95500.0,95499.0,0.2211875]
[1739306097125,0.12726149,95520.0,95516.0,0.2093993]
[1739306097324,0.12726149,95520.0,95499.0,0.0117501]
[1739306097325,0.3608,95522.0,95514.0,0.2094045]
[1739306097625,0.1003,95521.0,95514.0,0.2094045]
[1739306098127,0.1003,95521.0,95506.0,0.1046]
[1739306098128,0.1003,95521.0,95508.0,0.2094155]
[1739306098320,0.12726149,95518.0,95516.0,0.001]
[1739306098521,0.015,95520.0,95516.0,0.001]
[1739306098719,0.015,95520.0,95510.0,0.2094128]
[1739306099023,0.1003,95521.0,95510.0,0.2094128]
[1739306099230,0.1153,95521.0,95514.0,0.001]
[1739306099531,0.1153,95521.0,95514.0,0.002]
[1739306100029,0.1153,95521.0,95514.0,0.001]
[1739306100629,0.1003,95521.0,95514.0,0.001]
[1739306100933,0.006,95520.0,95514.0,0.001]
[1739306101528,0.1063,95521.0,95514.0,0.002]
[1739306102424,0.1063,95521.0,95514.0,0.01156545]